[Event "Titled Tuesday Blitz April 19 Late 2022"]
[White "Jobava, Baadur"]
[Black "Jaferian, Koosha"]
[WhiteFideId "13601520"]
[BlackFideId "12507440"]
[WhiteElo "2617"]
[BlackElo "2030"]
[Result "1-0"]
[Round "09"]
[TimeControl "180+1"]
[Date "2022.04.19"]
[WhiteClock "0:00:07"]
[BlackClock "0:00:02"]

1. b3 {[%clk 0:02:41]}  d5 {[%clk 0:02:59]} 2. Bb2 {[%clk 0:02:38]}  Bf5 {[%clk 0:02:58]} 3. d3 {[%clk 0:02:38]}  Nf6 {[%clk 0:02:58]} 4. Nd2 {[%clk 0:02:38]}  h6 {[%clk 0:02:58]} 5. g3 {[%clk 0:02:38]}  e6 {[%clk 0:02:59]} 6. Bg2 {[%clk 0:02:38]}  Bh7 {[%clk 0:02:59]} 7. e4 {[%clk 0:02:39]}  c6 {[%clk 0:02:59]} 8. Ne2 {[%clk 0:02:39]}  Nbd7 {[%clk 0:02:59]} 9. O-O {[%clk 0:02:39]}  Be7 {[%clk 0:03:00]} 10. e5 {[%clk 0:02:39]}  Ng8 {[%clk 0:02:53]} 11. Nf4 {[%clk 0:02:39]}  Qc7 {[%clk 0:02:47]} 12. Re1 {[%clk 0:02:35]}  Bf8 {[%clk 0:02:16]} 13. c4 {[%clk 0:02:22]}  Ne7 {[%clk 0:02:09]} 14. Rc1 {[%clk 0:02:19]}  Qb6 {[%clk 0:01:58]} 15. d4 {[%clk 0:02:14]}  Ng6 {[%clk 0:01:43]} 16. Nh5 {[%clk 0:02:08]}  Ne7 {[%clk 0:01:16]} 17. Nf3 {[%clk 0:02:00]}  Be4 {[%clk 0:01:01]} 18. Ba3 {[%clk 0:01:58]}  Ng6 {[%clk 0:00:55]} 19. Bxf8 {[%clk 0:01:56]}  Kxf8 {[%clk 0:00:56]} 20. c5 {[%clk 0:01:50]}  Qc7 {[%clk 0:00:49]} 21. Rxe4 {[%clk 0:01:49]}  dxe4 {[%clk 0:00:50]} 22. Nd2 {[%clk 0:01:50]}  Rd8 {[%clk 0:00:45]} 23. Qe2 {[%clk 0:01:46]}  Kg8 {[%clk 0:00:39]} 24. Nxe4 {[%clk 0:01:46]}  Kh7 {[%clk 0:00:35]} 25. Nd6 {[%clk 0:01:45]}  Rhf8 {[%clk 0:00:36]} 26. Be4 {[%clk 0:01:37]}  Nb8 {[%clk 0:00:29]} 27. Qg4 {[%clk 0:01:35]}  Qe7 {[%clk 0:00:26]} 28. h4 {[%clk 0:01:30]}  Kh8 {[%clk 0:00:17]} 29. Kg2 {[%clk 0:01:26]}  b6 {[%clk 0:00:14]} 30. b4 {[%clk 0:01:16]}  bxc5 {[%clk 0:00:14]} 31. bxc5 {[%clk 0:01:17]}  Na6 {[%clk 0:00:13]} 32. Bxc6 {[%clk 0:01:15]}  Nc7 {[%clk 0:00:14]} 33. Rb1 {[%clk 0:01:13]}  Rb8 {[%clk 0:00:12]} 34. Be4 {[%clk 0:01:12]}  Rxb1 {[%clk 0:00:12]} 35. Bxb1 {[%clk 0:01:13]}  Rb8 {[%clk 0:00:10]} 36. Nxf7+ {[%clk 0:01:10]}  Qxf7 {[%clk 0:00:10]} 37. Bxg6 {[%clk 0:01:10]}  Qe7 {[%clk 0:00:08]} 38. Be4 {[%clk 0:01:08]}  Qf7 {[%clk 0:00:06]} 39. Nf4 {[%clk 0:01:08]}  Rd8 {[%clk 0:00:03]} 40. Bg6 {[%clk 0:01:02]}  Qe7 {[%clk 0:00:03]} 41. Bc2 {[%clk 0:01:02]}  Qf7 {[%clk 0:00:02]} 42. h5 {[%clk 0:01:03]}  Kg8 {[%clk 0:00:01]} 43. Ng6 {[%clk 0:00:59]}  Nd5 {[%clk 0:00:01]} 44. Bb3 {[%clk 0:00:55]}  Rb8 {[%clk 0:00:02]} 45. Qe4 {[%clk 0:00:51]}  Rd8 {[%clk 0:00:01]} 46. Bc2 {[%clk 0:00:41]}  Nc3 {[%clk 0:00:02]} 47. Qd3 {[%clk 0:00:40]}  Nd5 {[%clk 0:00:02]} 48. Bd1 {[%clk 0:00:35]}  Nb4 {[%clk 0:00:02]} 49. Qc4 {[%clk 0:00:34]}  Nd5 {[%clk 0:00:03]} 50. Bg4 {[%clk 0:00:34]}  Re8 {[%clk 0:00:02]} 51. c6 {[%clk 0:00:33]}  Rb8 {[%clk 0:00:02]} 52. Bf3 {[%clk 0:00:19]}  Rb2 {[%clk 0:00:02]} 53. Bxd5 {[%clk 0:00:12]}  Qxf2+ {[%clk 0:00:01]} 54. Kh3 {[%clk 0:00:12]}  Qh2+ {[%clk 0:00:02]} 55. Kg4 {[%clk 0:00:12]}  exd5 {[%clk 0:00:02]} 56. Qxd5+ {[%clk 0:00:13]}  Kh7 {[%clk 0:00:03]} 57. Nf8+ {[%clk 0:00:12]}  Kh8 {[%clk 0:00:03]} 58. Qe4 {[%clk 0:00:11]}  Qe2+ {[%clk 0:00:02]} 59. Qxe2 {[%clk 0:00:10]}  Rxe2 {[%clk 0:00:02]} 60. d5 {[%clk 0:00:07]}  Rxe5 {[%clk 0:00:02]} 61. c7 {[%clk 0:00:07]}  Re8 {[%clk 0:00:02]} 62. d6 {[%clk 0:00:07]}  Rxf8 {[%clk 0:00:02]} 63. d7 {[%clk 0:00:07]} 1-0


[Site "https://www.chess.com"]

[Event "Titled Tuesday Blitz April 19 Late 2022"]
[White "Kamsky, Gata"]
[Black "Kollars, Dmitrij"]
[WhiteFideId "2000024"]
[BlackFideId "12909572"]
[WhiteElo "2645"]
[BlackElo "2584"]
[Result "1-0"]
[Round "09"]
[TimeControl "180+1"]
[Date "2022.04.19"]
[WhiteClock "0:00:31"]
[BlackClock "0:00:07"]

1. e4 {[%clk 0:03:00]}  e5 {[%clk 0:02:56]} 2. Nf3 {[%clk 0:03:00]}  Nc6 {[%clk 0:02:56]} 3. Bb5 {[%clk 0:03:00]}  g6 {[%clk 0:02:51]} 4. d4 {[%clk 0:02:57]}  exd4 {[%clk 0:02:49]} 5. Bg5 {[%clk 0:02:56]}  Be7 {[%clk 0:02:49]} 6. Bxe7 {[%clk 0:02:56]}  Qxe7 {[%clk 0:02:49]} 7. Bxc6 {[%clk 0:02:56]}  dxc6 {[%clk 0:02:48]} 8. Qxd4 {[%clk 0:02:56]}  Nf6 {[%clk 0:02:47]} 9. Nc3 {[%clk 0:02:56]}  O-O {[%clk 0:02:45]} 10. O-O {[%clk 0:02:53]}  Rd8 {[%clk 0:02:25]} 11. Qe3 {[%clk 0:02:38]}  b6 {[%clk 0:02:20]} 12. h3 {[%clk 0:02:28]}  Bb7 {[%clk 0:02:15]} 13. Rfe1 {[%clk 0:02:14]}  c5 {[%clk 0:02:14]} 14. Qf4 {[%clk 0:02:10]}  Rd7 {[%clk 0:01:54]} 15. Qh6 {[%clk 0:01:46]}  Qf8 {[%clk 0:01:23]} 16. Qh4 {[%clk 0:01:44]}  Qg7 {[%clk 0:01:21]} 17. e5 {[%clk 0:01:41]}  Nh5 {[%clk 0:00:51]} 18. Ne4 {[%clk 0:01:39]}  Rad8 {[%clk 0:00:48]} 19. g4 {[%clk 0:01:29]}  Bxe4 {[%clk 0:00:36]} 20. Rxe4 {[%clk 0:01:27]}  f5 {[%clk 0:00:36]} 21. Re3 {[%clk 0:00:57]}  Nf4 {[%clk 0:00:32]} 22. e6 {[%clk 0:00:50]}  Re7 {[%clk 0:00:30]} 23. Rae1 {[%clk 0:00:46]}  Rde8 {[%clk 0:00:22]} 24. Ng5 {[%clk 0:00:45]}  Qf6 {[%clk 0:00:14]} 25. gxf5 {[%clk 0:00:43]}  Qxf5 {[%clk 0:00:14]} 26. Rf3 {[%clk 0:00:36]}  Rf8 {[%clk 0:00:14]} 27. Re4 {[%clk 0:00:34]}  h6 {[%clk 0:00:09]} 28. Rexf4 {[%clk 0:00:33]}  hxg5 {[%clk 0:00:06]} 29. Rxf5 {[%clk 0:00:32]}  Rxf5 {[%clk 0:00:07]} 30. Qe4 {[%clk 0:00:31]} 1-0


[Site "https://www.chess.com"]

[Event "Titled Tuesday Blitz April 19 Late 2022"]
[White "Kujawski, Adam"]
[Black "Ricaurte Lopez, Juan Carlos"]
[WhiteFideId "1100920"]
[BlackFideId "3600327"]
[WhiteElo "2053"]
[BlackElo "2209"]
[Result "1-0"]
[Round "09"]
[TimeControl "180+1"]
[Date "2022.04.19"]
[WhiteClock "0:00:12"]
[BlackClock "0:00:08"]

1. e4 {[%clk 0:03:00]}  e5 {[%clk 0:02:59]} 2. Nf3 {[%clk 0:03:01]}  Nc6 {[%clk 0:02:58]} 3. Bb5 {[%clk 0:03:00]}  a6 {[%clk 0:02:55]} 4. Ba4 {[%clk 0:03:01]}  Nf6 {[%clk 0:02:54]} 5. O-O {[%clk 0:03:00]}  b5 {[%clk 0:02:53]} 6. Bb3 {[%clk 0:03:00]}  Be7 {[%clk 0:02:52]} 7. d4 {[%clk 0:02:58]}  Nxe4 {[%clk 0:02:46]} 8. Re1 {[%clk 0:02:56]}  d5 {[%clk 0:02:41]} 9. dxe5 {[%clk 0:02:56]}  Be6 {[%clk 0:02:39]} 10. Nbd2 {[%clk 0:02:51]}  Nc5 {[%clk 0:02:37]} 11. c3 {[%clk 0:02:49]}  Nxb3 {[%clk 0:02:33]} 12. Nxb3 {[%clk 0:02:49]}  O-O {[%clk 0:02:32]} 13. Nfd4 {[%clk 0:02:48]}  Nxd4 {[%clk 0:02:28]} 14. cxd4 {[%clk 0:02:46]}  a5 {[%clk 0:02:28]} 15. Be3 {[%clk 0:02:46]}  a4 {[%clk 0:02:27]} 16. Nc1 {[%clk 0:02:45]}  a3 {[%clk 0:02:16]} 17. b3 {[%clk 0:02:37]}  Bb4 {[%clk 0:02:11]} 18. Bd2 {[%clk 0:02:33]}  Be7 {[%clk 0:01:51]} 19. Nd3 {[%clk 0:02:32]}  Qd7 {[%clk 0:01:47]} 20. Bb4 {[%clk 0:02:20]}  Bxb4 {[%clk 0:01:41]} 21. Nxb4 {[%clk 0:02:20]}  Bf5 {[%clk 0:01:33]} 22. Rc1 {[%clk 0:02:18]}  f6 {[%clk 0:01:29]} 23. Qd2 {[%clk 0:01:57]}  Rae8 {[%clk 0:01:24]} 24. exf6 {[%clk 0:01:38]}  Rxe1+ {[%clk 0:01:06]} 25. Rxe1 {[%clk 0:01:37]}  Rxf6 {[%clk 0:01:06]} 26. Re5 {[%clk 0:01:28]}  Rd6 {[%clk 0:00:49]} 27. Qg5 {[%clk 0:01:19]}  Be6 {[%clk 0:00:25]} 28. Nd3 {[%clk 0:01:02]}  Bf7 {[%clk 0:00:20]} 29. Nc5 {[%clk 0:00:53]}  Qc6 {[%clk 0:00:19]} 30. Re7 {[%clk 0:00:35]}  h6 {[%clk 0:00:16]} 31. Qf5 {[%clk 0:00:18]}  Rf6 {[%clk 0:00:16]} 32. Qd7 {[%clk 0:00:12]}  Qxd7 {[%clk 0:00:15]} 33. Rxd7 {[%clk 0:00:13]}  c6 {[%clk 0:00:14]} 34. f3 {[%clk 0:00:12]}  Rf4 {[%clk 0:00:13]} 35. Rd8+ {[%clk 0:00:11]}  Kh7 {[%clk 0:00:11]} 36. Nd7 {[%clk 0:00:11]}  Rxd4 {[%clk 0:00:10]} 37. Nf8+ {[%clk 0:00:11]}  Kg8 {[%clk 0:00:09]} 38. Ne6+ {[%clk 0:00:12]}  Kh7 {[%clk 0:00:08]} 39. Nxd4 {[%clk 0:00:12]} 1-0


[Site "https://www.chess.com"]

[Event "Titled Tuesday Blitz April 19 Late 2022"]
[White "Leitao, Rafael"]
[Black "Wagner, Dinara"]
[WhiteFideId "2101246"]
[BlackFideId "24157570"]
[WhiteElo "2655"]
[BlackElo "2505"]
[Result "0-1"]
[Round "09"]
[TimeControl "180+1"]
[Date "2022.04.19"]
[WhiteClock "0:00:20"]
[BlackClock "0:00:14"]

1. e4 {[%clk 0:03:00]}  c5 {[%clk 0:02:59]} 2. Nf3 {[%clk 0:03:00]}  d6 {[%clk 0:03:00]} 3. d4 {[%clk 0:02:57]}  cxd4 {[%clk 0:03:00]} 4. Nxd4 {[%clk 0:02:58]}  Nf6 {[%clk 0:03:01]} 5. Nc3 {[%clk 0:02:58]}  a6 {[%clk 0:03:01]} 6. Be2 {[%clk 0:02:59]}  e6 {[%clk 0:03:00]} 7. Be3 {[%clk 0:02:55]}  Be7 {[%clk 0:02:59]} 8. f4 {[%clk 0:02:54]}  O-O {[%clk 0:02:59]} 9. g4 {[%clk 0:02:51]}  Nc6 {[%clk 0:02:59]} 10. Qd2 {[%clk 0:02:35]}  Nxd4 {[%clk 0:02:37]} 11. Bxd4 {[%clk 0:02:34]}  b5 {[%clk 0:02:37]} 12. g5 {[%clk 0:02:29]}  Nd7 {[%clk 0:02:36]} 13. a3 {[%clk 0:02:09]}  e5 {[%clk 0:02:22]} 14. Be3 {[%clk 0:02:05]}  exf4 {[%clk 0:02:22]} 15. Bxf4 {[%clk 0:02:06]}  Ne5 {[%clk 0:02:23]} 16. Nd5 {[%clk 0:02:00]}  Be6 {[%clk 0:02:22]} 17. O-O-O {[%clk 0:01:54]}  Bxd5 {[%clk 0:02:21]} 18. exd5 {[%clk 0:01:54]}  Rc8 {[%clk 0:02:16]} 19. h4 {[%clk 0:01:50]}  Nc4 {[%clk 0:02:15]} 20. Bxc4 {[%clk 0:01:43]}  Rxc4 {[%clk 0:02:16]} 21. Kb1 {[%clk 0:01:44]}  Qb6 {[%clk 0:02:01]} 22. Rhe1 {[%clk 0:01:36]}  Bd8 {[%clk 0:01:48]} 23. h5 {[%clk 0:01:32]}  b4 {[%clk 0:01:48]} 24. Be3 {[%clk 0:01:10]}  Qb7 {[%clk 0:01:43]} 25. axb4 {[%clk 0:00:56]}  Rxb4 {[%clk 0:01:40]} 26. c3 {[%clk 0:00:51]}  Rb5 {[%clk 0:01:33]} 27. h6 {[%clk 0:00:48]}  Ba5 {[%clk 0:01:33]} 28. Ka1 {[%clk 0:00:32]}  Rb8 {[%clk 0:01:06]} 29. Qd4 {[%clk 0:00:29]}  f5 {[%clk 0:01:04]} 30. Qxg7+ {[%clk 0:00:20]}  Qxg7 {[%clk 0:01:03]} 31. hxg7 {[%clk 0:00:20]}  Bxc3 {[%clk 0:00:59]} 32. Bd4 {[%clk 0:00:20]}  Ra5+ {[%clk 0:00:14]} 0-1


[Site "https://www.chess.com"]

[Event "Titled Tuesday Blitz April 19 Late 2022"]
[White "Leiva, Gianmarco"]
[Black "Yedidia, Daniel"]
[WhiteFideId "3804399"]
[BlackFideId "30905907"]
[WhiteElo "2323"]
[BlackElo "2627"]
[Result "0-1"]
[Round "09"]
[TimeControl "180+1"]
[Date "2022.04.19"]
[WhiteClock "0:00:03"]
[BlackClock "0:00:06"]

1. e4 {[%clk 0:03:00]}  e5 {[%clk 0:02:59]} 2. Nf3 {[%clk 0:03:00]}  Nc6 {[%clk 0:03:00]} 3. Bc4 {[%clk 0:03:00]}  Nf6 {[%clk 0:03:00]} 4. d3 {[%clk 0:02:59]}  Be7 {[%clk 0:03:00]} 5. O-O {[%clk 0:02:55]}  O-O {[%clk 0:02:52]} 6. Re1 {[%clk 0:02:52]}  d6 {[%clk 0:02:52]} 7. Nbd2 {[%clk 0:02:52]}  Na5 {[%clk 0:02:52]} 8. h3 {[%clk 0:02:36]}  Nxc4 {[%clk 0:02:44]} 9. dxc4 {[%clk 0:02:37]}  h6 {[%clk 0:02:37]} 10. b3 {[%clk 0:02:37]}  a5 {[%clk 0:02:35]} 11. a4 {[%clk 0:02:33]}  Nd7 {[%clk 0:02:27]} 12. Nf1 {[%clk 0:02:26]}  Nc5 {[%clk 0:02:23]} 13. Ng3 {[%clk 0:02:24]}  Bh4 {[%clk 0:02:12]} 14. Nxh4 {[%clk 0:01:42]}  Qxh4 {[%clk 0:02:13]} 15. Be3 {[%clk 0:01:42]}  Be6 {[%clk 0:02:05]} 16. Qf3 {[%clk 0:01:27]}  Rad8 {[%clk 0:01:53]} 17. Rad1 {[%clk 0:01:10]}  g6 {[%clk 0:01:38]} 18. Bxc5 {[%clk 0:00:22]}  dxc5 {[%clk 0:01:37]} 19. Ne2 {[%clk 0:00:23]}  Kg7 {[%clk 0:01:33]} 20. Nc3 {[%clk 0:00:14]}  c6 {[%clk 0:01:27]} 21. Rxd8 {[%clk 0:00:14]}  Rxd8 {[%clk 0:01:26]} 22. Rd1 {[%clk 0:00:15]}  Rd4 {[%clk 0:01:25]} 23. Rd3 {[%clk 0:00:15]}  Qg5 {[%clk 0:01:21]} 24. Ne2 {[%clk 0:00:15]}  Rxd3 {[%clk 0:00:55]} 25. Qxd3 {[%clk 0:00:16]}  b6 {[%clk 0:00:53]} 26. Kf1 {[%clk 0:00:14]}  h5 {[%clk 0:00:45]} 27. Qd1 {[%clk 0:00:14]}  h4 {[%clk 0:00:43]} 28. Ng1 {[%clk 0:00:14]}  Qf4 {[%clk 0:00:42]} 29. Nf3 {[%clk 0:00:10]}  Qxe4 {[%clk 0:00:40]} 30. Qe2 {[%clk 0:00:10]}  Qxe2+ {[%clk 0:00:35]} 31. Kxe2 {[%clk 0:00:11]}  Bf5 {[%clk 0:00:24]} 32. Kd2 {[%clk 0:00:04]}  Be4 {[%clk 0:00:21]} 33. Ne1 {[%clk 0:00:04]}  g5 {[%clk 0:00:18]} 34. f3 {[%clk 0:00:04]}  Bf5 {[%clk 0:00:16]} 35. Nd3 {[%clk 0:00:03]}  Bxd3 {[%clk 0:00:14]} 36. cxd3 {[%clk 0:00:04]}  Kf6 {[%clk 0:00:14]} 37. Ke2 {[%clk 0:00:02]}  Kf5 {[%clk 0:00:12]} 38. Ke3 {[%clk 0:00:01]}  f6 {[%clk 0:00:12]} 39. Ke2 {[%clk 0:00:02]}  Kf4 {[%clk 0:00:13]} 40. Kf2 {[%clk 0:00:01]}  f5 {[%clk 0:00:13]} 41. Ke2 {[%clk 0:00:02]}  Kg3 {[%clk 0:00:13]} 42. Kf1 {[%clk 0:00:02]}  g4 {[%clk 0:00:12]} 43. hxg4 {[%clk 0:00:02]}  fxg4 {[%clk 0:00:13]} 44. fxg4 {[%clk 0:00:02]}  Kxg4 {[%clk 0:00:13]} 45. Kf2 {[%clk 0:00:02]}  Kf4 {[%clk 0:00:14]} 46. Ke2 {[%clk 0:00:02]}  Kg3 {[%clk 0:00:13]} 47. Kf1 {[%clk 0:00:03]}  Kf4 {[%clk 0:00:11]} 48. Kf2 {[%clk 0:00:03]}  e4 {[%clk 0:00:11]} 49. dxe4 {[%clk 0:00:02]}  Kxe4 {[%clk 0:00:12]} 50. Ke2 {[%clk 0:00:02]}  Kf4 {[%clk 0:00:12]} 51. Kf2 {[%clk 0:00:02]}  Kg4 {[%clk 0:00:12]} 52. Ke2 {[%clk 0:00:02]}  Kg3 {[%clk 0:00:08]} 53. Kf1 {[%clk 0:00:02]}  Kf4 {[%clk 0:00:04]} 54. Kf2 {[%clk 0:00:01]}  Ke4 {[%clk 0:00:05]} 55. Ke2 {[%clk 0:00:01]}  Kd4 {[%clk 0:00:04]} 56. Kf3 {[%clk 0:00:01]}  Kc3 {[%clk 0:00:04]} 57. Kg4 {[%clk 0:00:02]}  Kxb3 {[%clk 0:00:05]} 58. Kxh4 {[%clk 0:00:03]}  Kxa4 {[%clk 0:00:03]} 59. g4 {[%clk 0:00:04]}  b5 {[%clk 0:00:03]} 60. cxb5 {[%clk 0:00:02]}  cxb5 {[%clk 0:00:04]} 61. g5 {[%clk 0:00:02]}  b4 {[%clk 0:00:05]} 62. g6 {[%clk 0:00:02]}  b3 {[%clk 0:00:06]} 63. g7 {[%clk 0:00:03]}  b2 {[%clk 0:00:07]} 64. g8=Q {[%clk 0:00:04]}  b1=Q {[%clk 0:00:08]} 65. Qe8+ {[%clk 0:00:04]}  Qb5 {[%clk 0:00:07]} 66. Qc8 {[%clk 0:00:04]}  c4 {[%clk 0:00:07]} 67. Kg3 {[%clk 0:00:04]}  Qb3+ {[%clk 0:00:07]} 68. Kf4 {[%clk 0:00:04]}  c3 {[%clk 0:00:07]} 69. Qc6+ {[%clk 0:00:05]}  Ka3 {[%clk 0:00:08]} 70. Ke3 {[%clk 0:00:03]}  c2+ {[%clk 0:00:08]} 71. Kd2 {[%clk 0:00:04]}  Kb2 {[%clk 0:00:07]} 72. Qf6+ {[%clk 0:00:04]}  Kb1 {[%clk 0:00:07]} 73. Qf1+ {[%clk 0:00:04]}  Ka2 {[%clk 0:00:08]} 74. Qf5 {[%clk 0:00:02]}  Qb4+ {[%clk 0:00:04]} 75. Kxc2 {[%clk 0:00:02]}  Qb1+ {[%clk 0:00:04]} 76. Kc3 {[%clk 0:00:01]}  Qxf5 {[%clk 0:00:05]} 77. Kc4 {[%clk 0:00:02]}  Qc2+ {[%clk 0:00:05]} 78. Kb5 {[%clk 0:00:02]}  Qb3+ {[%clk 0:00:05]} 79. Ka6 {[%clk 0:00:03]}  a4 {[%clk 0:00:06]} 80. Ka5 {[%clk 0:00:03]}  Kb2 {[%clk 0:00:06]} 0-1


[Site "https://www.chess.com"]

[Event "Titled Tuesday Blitz April 19 Late 2022"]
[White "Lopez, Henry"]
[Black "Koutlas, Nikolaos"]
[WhiteFideId "5203830"]
[BlackFideId "25827138"]
[WhiteElo "2177"]
[BlackElo "1645"]
[Result "0-1"]
[Round "09"]
[TimeControl "180+1"]
[Date "2022.04.19"]
[WhiteClock "0:00:28"]
[BlackClock "0:00:20"]

1. d4 {[%clk 0:02:27]}  b6 {[%clk 0:02:51]} 2. Nf3 {[%clk 0:02:26]}  Bb7 {[%clk 0:02:52]} 3. c4 {[%clk 0:02:25]}  Nf6 {[%clk 0:02:52]} 4. Nc3 {[%clk 0:02:25]}  g6 {[%clk 0:02:52]} 5. d5 {[%clk 0:02:23]}  Bg7 {[%clk 0:02:52]} 6. e4 {[%clk 0:02:23]}  d6 {[%clk 0:02:48]} 7. Be2 {[%clk 0:02:23]}  e5 {[%clk 0:02:46]} 8. O-O {[%clk 0:02:14]}  Nbd7 {[%clk 0:02:45]} 9. Rb1 {[%clk 0:02:11]}  a5 {[%clk 0:02:44]} 10. b3 {[%clk 0:02:10]}  O-O {[%clk 0:02:40]} 11. a3 {[%clk 0:02:09]}  h6 {[%clk 0:02:20]} 12. Ne1 {[%clk 0:02:03]}  Ne8 {[%clk 0:02:18]} 13. Be3 {[%clk 0:02:02]}  f5 {[%clk 0:02:18]} 14. f3 {[%clk 0:02:02]}  f4 {[%clk 0:02:18]} 15. Bf2 {[%clk 0:02:01]}  g5 {[%clk 0:02:19]} 16. Nd3 {[%clk 0:02:01]}  Ba6 {[%clk 0:02:16]} 17. Nb2 {[%clk 0:01:57]}  h5 {[%clk 0:02:13]} 18. b4 {[%clk 0:01:56]}  axb4 {[%clk 0:02:12]} 19. axb4 {[%clk 0:01:56]}  Nef6 {[%clk 0:02:12]} 20. h3 {[%clk 0:01:53]}  Rf7 {[%clk 0:02:04]} 21. Ra1 {[%clk 0:01:51]}  g4 {[%clk 0:01:58]} 22. fxg4 {[%clk 0:01:48]}  hxg4 {[%clk 0:01:59]} 23. hxg4 {[%clk 0:01:47]}  Bh6 {[%clk 0:01:49]} 24. Bh4 {[%clk 0:01:34]}  Rg7 {[%clk 0:01:45]} 25. Qd3 {[%clk 0:01:18]}  Qe8 {[%clk 0:01:34]} 26. Ra4 {[%clk 0:01:07]}  Nxg4 {[%clk 0:01:29]} 27. Qh3 {[%clk 0:00:58]}  Ne3 {[%clk 0:01:25]} 28. Rf2 {[%clk 0:00:57]}  Bb7 {[%clk 0:01:05]} 29. Qe6+ {[%clk 0:00:47]}  Qxe6 {[%clk 0:01:01]} 30. Rxa8+ {[%clk 0:00:41]}  Bxa8 {[%clk 0:00:58]} 31. dxe6 {[%clk 0:00:41]}  Nb8 {[%clk 0:00:50]} 32. b5 {[%clk 0:00:28]}  Bg5 {[%clk 0:00:20]} 0-1


[Site "https://www.chess.com"]

[Event "Titled Tuesday Blitz April 19 Late 2022"]
[White "Lopez Idarraga, Daniel Eduardo"]
[Black "Musovic, Armin"]
[WhiteFideId "4405501"]
[BlackFideId "939935"]
[WhiteElo "2055"]
[BlackElo "2255"]
[Result "0-1"]
[Round "09"]
[TimeControl "180+1"]
[Date "2022.04.19"]
[WhiteClock "0:01:10"]
[BlackClock "0:02:04"]

1. d4 {[%clk 0:03:00]}  d5 {[%clk 0:02:59]} 2. Nf3 {[%clk 0:03:01]}  Nf6 {[%clk 0:02:59]} 3. e3 {[%clk 0:03:01]}  c5 {[%clk 0:03:00]} 4. c3 {[%clk 0:03:00]}  cxd4 {[%clk 0:03:00]} 5. exd4 {[%clk 0:02:59]}  Nc6 {[%clk 0:03:01]} 6. Bf4 {[%clk 0:02:54]}  a6 {[%clk 0:03:01]} 7. Nbd2 {[%clk 0:02:54]}  Bg4 {[%clk 0:03:01]} 8. Qb3 {[%clk 0:02:51]}  Na5 {[%clk 0:03:01]} 9. Qa4+ {[%clk 0:02:51]}  b5 {[%clk 0:03:01]} 10. Qc2 {[%clk 0:02:47]}  Rc8 {[%clk 0:03:00]} 11. Bd3 {[%clk 0:02:44]}  e6 {[%clk 0:02:59]} 12. Ne5 {[%clk 0:02:43]}  Bh5 {[%clk 0:02:58]} 13. O-O {[%clk 0:02:42]}  Bd6 {[%clk 0:02:57]} 14. Rae1 {[%clk 0:02:34]}  O-O {[%clk 0:02:57]} 15. Re3 {[%clk 0:02:24]}  Nc4 {[%clk 0:02:56]} 16. Ndxc4 {[%clk 0:02:17]}  dxc4 {[%clk 0:02:45]} 17. Be2 {[%clk 0:02:16]}  Bg6 {[%clk 0:02:37]} 18. Nxg6 {[%clk 0:02:15]}  hxg6 {[%clk 0:02:37]} 19. Bxd6 {[%clk 0:02:13]}  Qxd6 {[%clk 0:02:38]} 20. Rh3 {[%clk 0:02:12]}  Rfd8 {[%clk 0:02:37]} 21. Qc1 {[%clk 0:02:11]}  e5 {[%clk 0:02:36]} 22. Qg5 {[%clk 0:02:04]}  exd4 {[%clk 0:02:29]} 23. Qh4 {[%clk 0:02:05]}  Nh5 {[%clk 0:02:30]} 24. Bxh5 {[%clk 0:02:04]}  gxh5 {[%clk 0:02:30]} 25. Qxh5 {[%clk 0:02:05]}  Qh6 {[%clk 0:02:30]} 26. Qg4 {[%clk 0:02:00]}  Qg6 {[%clk 0:02:24]} 27. Qh4 {[%clk 0:01:55]}  Qh6 {[%clk 0:02:23]} 28. Qe7 {[%clk 0:01:49]}  Qf6 {[%clk 0:02:20]} 29. Qxf6 {[%clk 0:01:46]}  gxf6 {[%clk 0:02:21]} 30. cxd4 {[%clk 0:01:45]}  Rxd4 {[%clk 0:02:22]} 31. Re1 {[%clk 0:01:39]}  Rd2 {[%clk 0:02:19]} 32. Ra3 {[%clk 0:01:28]}  Rc6 {[%clk 0:02:18]} 33. Rb1 {[%clk 0:01:26]}  Re6 {[%clk 0:02:14]} 34. Rf3 {[%clk 0:01:20]}  Rxb2 {[%clk 0:02:13]} 35. Rd1 {[%clk 0:01:19]}  Rd2 {[%clk 0:02:11]} 36. Rc1 {[%clk 0:01:19]}  Rxa2 {[%clk 0:02:09]} 37. g4 {[%clk 0:01:17]}  Rd2 {[%clk 0:02:07]} 38. Ra1 {[%clk 0:01:14]}  b4 {[%clk 0:02:06]} 39. Rf4 {[%clk 0:01:13]}  Rc6 {[%clk 0:02:05]} 40. Ra4 {[%clk 0:01:11]}  c3 {[%clk 0:02:04]} 41. Raxb4 {[%clk 0:01:11]}  c2 {[%clk 0:02:04]} 42. Rbc4 {[%clk 0:01:11]}  Rxc4 {[%clk 0:02:03]} 43. Rxc4 {[%clk 0:01:10]}  Rd1+ {[%clk 0:02:03]} 44. Kg2 {[%clk 0:01:10]}  c1=Q {[%clk 0:02:04]} 0-1


[Site "https://www.chess.com"]

[Event "Titled Tuesday Blitz April 19 Late 2022"]
[White "Mangialardo, Tiago Carvalho"]
[Black "Bongo Akanga Ndjila, Barthelemy"]
[WhiteFideId "2130718"]
[BlackFideId "10609431"]
[WhiteElo "2047"]
[BlackElo "1768"]
[Result "1-0"]
[Round "09"]
[TimeControl "180+1"]
[Date "2022.04.19"]
[WhiteClock "0:01:40"]
[BlackClock "0:02:13"]

1. e4 {[%clk 0:03:00]}  c6 {[%clk 0:02:58]} 2. d4 {[%clk 0:03:00]}  d5 {[%clk 0:02:59]} 3. exd5 {[%clk 0:03:01]}  cxd5 {[%clk 0:02:58]} 4. Bd3 {[%clk 0:03:02]}  Nc6 {[%clk 0:02:58]} 5. Nf3 {[%clk 0:03:02]}  Nf6 {[%clk 0:02:58]} 6. c3 {[%clk 0:03:03]}  Bg4 {[%clk 0:02:59]} 7. O-O {[%clk 0:03:02]}  e6 {[%clk 0:02:58]} 8. Bf4 {[%clk 0:03:02]}  Bd6 {[%clk 0:02:57]} 9. Bg5 {[%clk 0:03:02]}  Be7 {[%clk 0:02:57]} 10. Nbd2 {[%clk 0:03:02]}  Bxf3 {[%clk 0:02:55]} 11. Nxf3 {[%clk 0:03:02]}  O-O {[%clk 0:02:56]} 12. Qc2 {[%clk 0:03:01]}  h6 {[%clk 0:02:55]} 13. Bh4 {[%clk 0:02:58]}  Rc8 {[%clk 0:02:53]} 14. Qe2 {[%clk 0:02:45]}  Nh5 {[%clk 0:02:51]} 15. Bg3 {[%clk 0:02:43]}  Nxg3 {[%clk 0:02:46]} 16. hxg3 {[%clk 0:02:44]}  Bf6 {[%clk 0:02:41]} 17. Rfe1 {[%clk 0:02:40]}  a6 {[%clk 0:02:40]} 18. Bc2 {[%clk 0:02:36]}  Re8 {[%clk 0:02:38]} 19. Qd3 {[%clk 0:02:36]}  g6 {[%clk 0:02:37]} 20. Ne5 {[%clk 0:02:28]}  Nxe5 {[%clk 0:02:32]} 21. dxe5 {[%clk 0:02:29]}  Bg7 {[%clk 0:02:29]} 22. a4 {[%clk 0:02:13]}  Rc4 {[%clk 0:02:27]} 23. Bb3 {[%clk 0:02:02]}  Rc5 {[%clk 0:02:18]} 24. Bd1 {[%clk 0:01:58]}  b5 {[%clk 0:02:16]} 25. b4 {[%clk 0:01:43]}  Rxc3 {[%clk 0:02:13]} 26. Qxc3 {[%clk 0:01:40]} 1-0


[Site "https://www.chess.com"]